bitfinex/quotes_ETHUSD_20251120
["timestamp","ask_amount","ask_price","bid_price","bid_amount"]
[1763621049036,1.16207332,3015.8,3015.7,0.9246]
[1763621049520,3.23113929,3016.5,3015.7,0.9246]
[1763621049521,0.87844357,3015.9,3015.7,0.9246]
[1763621049689,0.87844357,3015.9,3015.8,0.4537]
[1763621049890,1.16207332,3016.0,3015.8,0.9246]
[1763621050090,0.87854033,3016.0,3015.9,0.5849]
[1763621050892,1.16207332,3016.1,3015.2,3.49812911]
[1763621051132,0.87852937,3015.9,3015.5,0.4537]
[1763621051331,0.87852937,3015.8,3015.5,0.4537]
[1763621051964,1.33502937,3015.6,3015.0,0.1834]
[1763621052229,0.87852937,3015.5,3015.4,0.114]
[1763621053927,0.87852937,3016.0,3015.4,1.0386]
[1763621054224,0.87852937,3016.0,3015.5,1.0386]
[1763621054405,0.87852937,3016.0,3015.9,0.4709]
[1763621054915,1.88797258,3016.0,3015.9,0.4709]
[1763621055117,1.00944321,3016.0,3015.9,1.0386]
[1763621055317,0.30554249,3016.0,3015.9,1.0386]
[1763621055629,1.00944321,3016.0,3015.9,1.0386]
[1763621055794,0.30554249,3016.0,3015.9,1.0386]
[1763621057331,0.30554249,3016.0,3015.9,0.5849]
[1763621059463,0.30554249,3016.0,3015.9,0.114]
[1763621059606,0.30554249,3016.0,3015.9,0.5849]
[1763621060136,0.30554249,3016.0,3015.9,1.0386]
[1763621060848,0.30554249,3016.0,3015.9,0.5849]
[1763621061039,0.30535168,3016.0,3015.9,0.5849]
[1763621061224,3.62073551,3016.3,3015.9,0.5849]
[1763621061406,1.0092524,3016.2,3015.9,0.5849]
[1763621061611,0.30535168,3016.1,3015.9,0.114]
[1763621061806,0.76185168,3016.0,3015.9,0.114]
[1763621062005,0.30535168,3016.0,3015.9,0.114]
[1763621062212,1.21495168,3016.0,3015.1,0.4537]
[1763621062409,1.21495168,3016.0,3014.9,0.001]
[1763621062410,0.2266,3015.6,3014.9,0.001]
[1763621062620,0.30535168,3015.5,3014.9,0.001]
[1763621062834,0.30535168,3015.4,3015.0,0.114]
[1763621063135,3.62184341,3015.3,3015.0,0.114]
[1763621063341,0.30535168,3015.2,3015.0,0.114]
[1763621063732,0.30535168,3015.1,3015.0,0.114]
[1763621063940,1.21495168,3015.1,3015.0,0.114]
[1763621064101,1.4650603,3015.1,3015.0,0.114]
[1763621064304,0.30535168,3015.1,3015.0,0.114]
[1763621064802,0.76185168,3015.1,3015.0,0.114]
[1763621065000,0.30535168,3015.1,3015.0,0.114]
[1763621065400,0.30535168,3015.1,3015.0,0.5849]
[1763621065603,0.30535168,3015.2,3015.0,0.5849]
[1763621065829,0.30535168,3015.2,3015.1,0.1834]
[1763621066102,0.30535168,3015.2,3015.1,0.6543]
[1763621066307,0.30535168,3015.4,3015.1,0.6543]
[1763621066529,0.30535168,3015.4,3015.3,0.4709]
[1763621066709,0.30535168,3015.5,3015.3,0.9246]
[1763621067035,1.19760716,3015.9,3015.1,0.6371]
[1763621067203,0.30535168,3015.8,3015.1,0.6371]
[1763621067403,1.00820716,3015.8,3015.1,3.50001915]
[1763621067602,0.30535168,3015.7,3015.2,0.499]
[1763621067833,7.83486056,3015.9,3015.3,0.114]
[1763621068004,1.00822696,3015.8,3015.3,0.114]
[1763621068202,0.30535168,3015.7,3015.3,0.114]
[1763621068420,0.76815168,3015.7,3015.3,0.114]
[1763621068739,1.59791774,3015.7,3015.3,0.114]
[1763621068908,0.30535168,3015.6,3015.3,0.114]
[1763621069238,3.62145598,3015.6,3015.3,0.114]
[1763621069427,0.4919,3015.4,3015.0,0.001]
[1763621069628,0.4628,3015.3,3015.0,0.001]
[1763621069825,0.76815168,3015.3,3015.0,0.001]
[1763621070001,0.30535168,3015.3,3015.0,0.001]
[1763621070515,0.4628,3015.3,3015.0,0.001]
[1763621070724,0.76823279,3015.3,3015.0,0.001]
[1763621071318,0.30543279,3015.3,3015.0,0.001]
[1763621071641,4.32544893,3015.6,3015.2,0.4666]
[1763621071942,0.195,3015.9,3015.3,0.114]
[1763621072142,0.50059919,3015.9,3015.3,0.114]
[1763621072435,3.81636647,3015.9,3015.3,0.114]
[1763621072639,1.00961508,3015.8,3015.3,0.114]
[1763621072830,0.30559919,3015.7,3015.3,0.114]
[1763621073271,0.30559919,3015.7,3015.6,0.4666]
[1763621073427,0.70423308,3016.1,3015.6,0.4666]
[1763621073744,0.30569169,3016.0,3015.3,0.114]
[1763621073903,1.00992477,3016.0,3015.3,0.613]
[1763621074243,0.30569169,3015.9,3015.3,0.613]
[1763621076039,3.62148366,3015.9,3015.3,0.613]
[1763621076359,0.30569169,3015.8,3015.3,0.114]
[1763621076535,0.4919,3015.4,3015.0,0.001]
[1763621076856,0.4919,3015.4,3015.1,0.114]
[1763621077095,0.30572187,3015.6,3015.3,0.4666]
[1763621077250,0.30572187,3015.6,3015.2,0.114]
[1763621077251,0.30569867,3015.6,3015.2,0.114]
[1763621077454,0.4919,3015.3,3015.2,0.114]
[1763621077677,0.30568401,3015.4,3015.2,0.114]
[1763621077846,0.30570721,3015.6,3015.2,0.5806]
[1763621078042,0.465,3015.3,3015.2,0.114]
[1763621078775,0.90699264,3015.2,3015.0,0.001]
[1763621078977,1.78459978,3015.1,3015.0,0.001]
[1763621079140,2.58280645,3015.1,3015.0,0.001]
[1763621079341,3.03119522,3015.1,3015.0,0.001]
[1763621079550,6.3478348,3015.1,3015.0,0.001]
[1763621079947,7.22792337,3015.1,3015.0,0.001]
[1763621080181,6.3478348,3015.1,3015.0,0.001]
[1763621080479,6.7533388,3015.1,3015.0,0.001]
[1763621080677,7.74742737,3015.1,3015.0,0.001]
[1763621080981,7.63342737,3015.1,3015.0,0.001]
[1763621081276,6.7533388,3015.1,3015.0,0.001]
[1763621081482,6.8673388,3015.1,3015.0,0.001]
[1763621084080,5.46693943,3015.1,3015.0,0.001]
[1763621084375,0.30570721,3015.1,3015.0,0.001]
[1763621084591,0.4726,3015.5,3015.0,0.001]
[1763621084592,6.63285324,3015.3,3015.0,0.001]
[1763621084796,0.465,3015.1,3015.0,0.001]
[1763621084960,0.77070721,3015.1,3015.0,0.001]
[1763621085161,1.24330721,3015.1,3015.0,0.001]
[1763621085361,0.77070721,3015.1,3015.0,0.001]
[1763621085589,0.30570721,3015.1,3015.0,0.001]
[1763621085793,0.30570721,3015.2,3015.0,0.001]
[1763621085968,1.21269985,3015.3,3015.0,0.001]
[1763621086160,0.30570721,3015.2,3015.0,0.001]
[1763621086691,0.90699264,3015.4,3015.0,0.001]
[1763621086893,0.30570721,3015.3,3015.0,0.001]
[1763621087671,3.622172,3015.3,3015.0,0.001]
[1763621087876,0.30570721,3015.2,3015.0,0.001]
[1763621088093,0.30570721,3015.3,3015.1,0.1877]
[1763621088401,0.90699264,3015.5,3015.1,0.1877]
[1763621088402,1.00876627,3015.4,3015.1,0.1877]
[1763621088577,0.30570721,3015.3,3015.0,0.001]
[1763621088973,0.77830721,3015.3,3015.0,0.001]
[1763621089176,0.465,3015.1,3015.0,0.001]
[1763621089929,0.9376,3015.1,3015.0,0.001]
[1763621090072,0.465,3015.1,3015.0,0.001]
[1763621090278,0.77031265,3015.1,3015.0,0.001]
[1763621091178,4.08695223,3015.1,3015.0,0.001]
[1763621091369,0.77031265,3015.1,3015.0,0.001]
[1763621091576,0.30531265,3015.1,3015.0,0.001]
[1763621091777,1.37959264,3015.4,3015.0,0.001]
[1763621091778,1.00912973,3015.3,3015.0,0.001]
[1763621091983,0.30531265,3015.2,3015.0,0.001]
[1763621092186,0.30531265,3015.2,3015.1,0.1877]
[1763621092391,0.30531265,3015.4,3015.1,0.6742]
[1763621092681,0.30531265,3015.4,3015.1,0.6875]
[1763621092882,0.30531265,3015.5,3015.3,0.4865]
[1763621093083,0.30731265,3015.6,3015.2,0.6138]
[1763621093306,0.30731265,3015.6,3015.5,0.4865]
[1763621093503,0.002,3015.6,3015.5,0.4865]
[1763621094212,0.002,3015.6,3015.5,0.9863]
[1763621097223,0.002,3015.6,3015.5,4.73275289]
[1763621097788,0.002,3015.6,3015.5,1.41655326]
[1763621097988,0.002,3015.6,3015.5,0.9863]
[1763621099712,0.002,3015.6,3015.5,0.6005]
[1763621100416,0.002,3015.6,3015.5,1.1003]
[1763621100822,0.002,3015.6,3015.5,4.41649963]
[1763621103729,0.002,3015.6,3015.5,3.91669963]
[1763621104025,0.002,3015.6,3015.5,5.1398004]
[1763621104326,0.002,3015.6,3015.5,0.6005]
[1763621104528,0.002,3015.6,3015.5,1.1003]
[1763621105410,0.002,3016.0,3015.5,1.1003]
[1763621105635,0.002,3016.0,3015.9,4.61392547]
[1763621105993,0.002,3016.0,3015.9,8.42948527]
[1763621106189,0.002,3016.0,3015.9,9.60402121]
[1763621106501,0.002,3016.7,3015.9,19.55130061]
[1763621106709,0.002,3016.7,3016.6,0.6742]
[1763621106998,0.002,3016.7,3016.6,0.7882]
[1763621107199,0.002,3016.7,3016.6,1.288]
[1763621107743,0.002,3017.1,3016.6,1.288]
[1763621108024,0.002,3018.3,3017.2,9.94299348]
[1763621108226,0.002,3018.3,3018.0,0.4885]
[1763621108429,0.002,3018.3,3018.2,0.4885]
[1763621109015,0.002,3018.3,3018.2,0.9761]
[1763621109538,0.002,3018.7,3018.2,0.9761]
[1763621109707,0.002,3018.7,3018.6,5.43865482]
[1763621110034,0.4665,3020.3,3018.6,9.89691431]
[1763621110239,0.4665,3020.3,3019.1,4.04316218]
[1763621110546,0.1947,3020.7,3019.4,4.04316218]
[1763621110894,0.4665,3020.6,3019.5,0.5315]
[1763621111097,0.4665,3020.6,3019.6,0.114]
[1763621111321,0.95436324,3020.6,3019.7,0.114]
[1763621111836,0.95436324,3020.6,3019.5,0.5315]
[1763621111998,0.95436324,3020.6,3019.6,0.114]
[1763621112196,0.5214,3019.6,3017.3,1.03484975]
[1763621112422,0.1933,3019.2,3018.1,3.48883806]
[1763621112624,0.1947,3019.9,3018.5,4.04316218]
[1763621112800,0.6612,3019.9,3018.5,4.04316218]
[1763621113129,0.1947,3019.9,3018.7,4.04316218]
[1763621113330,0.6612,3019.9,3018.8,0.6016]
[1763621113527,0.4665,3020.4,3019.0,4.04316218]
[1763621113737,0.48786324,3020.6,3019.3,4.04316218]
[1763621114043,0.1947,3020.7,3019.4,0.114]
[1763621114222,0.1947,3020.7,3019.6,4.04316218]
[1763621114633,0.1947,3020.9,3019.9,4.04316218]
[1763621114836,0.6612,3020.9,3020.0,0.114]
[1763621115242,0.6612,3020.9,3020.1,0.1885]
[1763621115454,0.4665,3020.8,3019.4,0.5299]
[1763621115652,0.4687,3020.1,3019.5,0.114]
[1763621116235,0.4665,3020.6,3019.5,3.91337386]
[1763621116483,0.37770719,3020.5,3019.5,0.114]
[1763621116638,0.37770719,3020.5,3019.5,3.42578448]
[1763621116838,0.4665,3020.4,3019.5,0.114]
[1763621117152,0.4665,3020.4,3019.5,3.42577165]
[1763621117352,0.4665,3020.4,3019.6,0.114]
[1763621117668,0.4665,3020.7,3019.6,1.27958782]
[1763621117838,0.4665,3020.7,3019.6,0.79198782]
[1763621118039,0.4665,3020.7,3019.7,0.4876]
[1763621118344,3.77705246,3020.7,3019.4,0.0423]
[1763621118657,0.4665,3020.6,3019.5,3.42580659]
[1763621118971,0.70876049,3020.5,3019.5,0.114]
[1763621119469,0.4665,3020.4,3019.6,0.114]
[1763621120470,0.4665,3020.4,3019.3,0.114]
[1763621120471,0.5214,3019.7,3019.3,0.114]
[1763621120646,0.1933,3019.4,3019.3,0.114]
[1763621121181,4.95015482,3020.2,3019.3,0.6025]
[1763621121182,0.1947,3019.9,3019.3,0.6025]
[1763621121345,0.4665,3020.4,3019.3,1.0901]
[1763621121546,0.4665,3020.4,3019.4,0.51332622]
[1763621121748,0.4665,3020.4,3019.4,1.00092622]
[1763621122372,0.90699264,3021.0,3019.5,7.14433124]
[1763621122676,0.4665,3020.7,3019.6,0.114]
[1763621123394,0.4685,3020.7,3019.6,0.114]
[1763621124190,0.405504,3020.6,3019.6,0.114]
[1763621124390,0.5214,3019.7,3018.6,0.4876]
[1763621124592,0.0527,3019.7,3018.7,0.114]
[1763621124996,0.5192,3019.7,3018.7,0.114]
[1763621125300,0.5192,3019.7,3018.7,0.6016]
[1763621126167,0.90699264,3020.4,3018.7,0.6016]
[1763621126368,2.19957914,3020.3,3019.1,6.62449074]
[1763621126583,3.77751523,3020.3,3019.2,0.114]
[1763621126786,0.4665,3020.2,3019.2,0.114]
[1763621127093,0.4687,3019.3,3019.2,0.114]
[1763621127393,0.5214,3019.3,3018.4,3.31301351]
[1763621127603,0.1933,3019.1,3018.5,0.114]
[1763621128266,0.405504,3019.9,3018.5,1.26952276]
[1763621128603,1.08739264,3019.9,3018.6,13.98154421]
[1763621128897,0.485,3019.8,3018.6,14.46304421]
[1763621129099,0.485,3019.8,3018.7,0.4815]
[1763621130308,0.1804,3019.9,3018.8,9.93772359]
[1763621130617,0.30338872,3020.0,3018.9,5.11820918]
[1763621130824,0.30337464,3020.0,3019.0,0.5955]
[1763621131139,3.79610951,3020.2,3019.0,0.5955]
[1763621131140,0.1804,3019.9,3019.0,0.5955]
[1763621131279,0.1804,3019.9,3019.1,0.0415]
[1763621131479,0.4874,3019.1,3018.1,0.1756]
[1763621131713,0.70887864,3019.6,3018.2,6.77350102]
[1763621131925,0.30337464,3019.5,3018.4,4.04316218]
[1763621132130,0.78837464,3019.8,3018.4,4.04316218]
[1763621132295,0.78837464,3019.8,3018.5,0.4815]
[1763621132495,0.90699264,3019.6,3018.3,3.31312328]
[1763621132680,0.90699264,3019.6,3018.4,0.4815]
[1763621132681,0.30337464,3019.5,3018.4,0.4815]
[1763621132885,0.78837464,3019.5,3018.4,0.4815]
[1763621133213,1.48782671,3019.5,3018.4,0.4815]
[1763621133474,0.405504,3019.3,3018.1,0.1756]
[1763621133609,0.4927006,3019.2,3018.5,0.114]
[1763621133807,0.30337464,3019.1,3018.5,0.114]
[1763621134149,0.30337464,3019.0,3018.5,0.114]
[1763621134289,0.30337464,3018.9,3018.5,0.114]
[1763621134489,0.30337464,3018.8,3018.5,0.114]
[1763621134731,0.4874,3018.6,3018.5,0.114]
[1763621134927,1.27577464,3018.6,3018.5,0.114]
[1763621135308,1.97767236,3018.6,3018.5,0.114]
[1763621135695,1.00527236,3018.6,3018.5,0.114]
[1763621136014,1.00527236,3018.6,3016.8,3.31472863]
[1763621136015,1.27763299,3018.6,3017.5,0.6759]
[1763621136215,0.0442,3018.2,3017.6,0.114]
[1763621136890,0.74609772,3018.2,3017.6,3.42788712]
[1763621137091,0.483,3017.7,3017.0,1.09549264]
[1763621137303,0.5316,3017.7,3017.1,0.114]
[1763621138509,0.5316,3017.7,3017.2,3.31433116]
[1763621138710,0.5316,3017.7,3017.2,4.0074521]
[1763621139108,0.30496863,3017.6,3017.2,4.0074521]
[1763621139306,0.5316,3017.7,3017.2,4.0074521]
[1763621139519,0.0486,3017.7,3017.2,3.31433116]
[1763621140050,0.30480616,3017.8,3017.6,0.4958]
[1763621140250,0.30480616,3017.8,3017.7,0.114]
[1763621140450,0.30480616,3018.0,3017.7,0.114]
[1763621141263,0.4877,3017.8,3017.7,0.114]
[1763621141733,0.30480616,3017.9,3017.7,3.88288201]
[1763621141938,0.30480616,3017.9,3017.7,4.60255708]
[1763621142193,0.30456974,3018.0,3017.7,4.60255708]
[1763621142341,0.30456974,3018.2,3017.7,7.91633909]
[1763621142717,0.30456974,3018.2,3017.7,8.38063909]
[1763621142912,0.30446599,3018.2,3017.8,0.4643]
[1763621143121,0.30446599,3018.2,3018.1,0.6409]
[1763621143440,0.70229961,3018.5,3018.1,0.7549]
[1763621143634,0.30445977,3018.4,3018.1,0.114]
[1763621143941,1.50345938,3018.6,3018.1,0.114]
[1763621144143,1.00675938,3018.5,3018.1,0.114]
[1763621144345,0.30445977,3018.4,3018.1,0.114]
[1763621144743,0.80115977,3018.6,3018.2,3.31323305]
[1763621144949,0.30445977,3018.5,3018.2,3.31323305]
[1763621145151,0.80115977,3018.6,3018.2,0.67406358]
[1763621145457,0.80115977,3018.6,3018.1,0.114]
[1763621145458,0.4967,3018.5,3018.1,0.114]
[1763621145658,0.80115977,3018.5,3018.1,3.42732409]
[1763621145840,0.4967,3018.5,3018.1,3.42732409]
[1763621146043,0.30461273,3018.6,3018.1,3.42732409]
[1763621146241,0.002,3018.7,3018.2,0.1858]
[1763621146442,0.002,3018.7,3018.2,0.92487669]
[1763621146853,0.4987,3018.7,3018.2,4.23808741]
[1763621147149,0.002,3018.7,3018.2,0.1858]
[1763621147458,0.002,3018.7,3018.1,0.114]
[1763621147459,0.4987,3018.7,3018.1,3.42734013]
[1763621147637,0.80336994,3018.7,3018.1,6.92648296]
[1763621147838,0.4987,3018.7,3018.1,6.92648296]
[1763621148533,0.002,3018.7,3018.1,6.92648296]
[1763621148739,0.30685232,3018.7,3018.1,6.92648296]
[1763621149080,0.002,3018.7,3018.1,7.66556126]
[1763621150179,0.002,3018.7,3018.6,0.4551]
[1763621150393,0.002,3018.7,3018.6,0.5691]
[1763621150539,0.002,3018.7,3018.6,0.114]
[1763621150943,0.002,3018.7,3018.6,3.42679401]
[1763621151155,0.002,3018.7,3018.6,0.114]
[1763621152288,0.002,3018.7,3018.6,3.42679401]
[1763621152884,0.002,3018.7,3018.6,0.114]
[1763621153086,0.002,3018.7,3018.6,3.42679401]
[1763621153465,0.002,3018.7,3018.6,0.114]
[1763621154502,0.002,3018.7,3018.6,3.42679401]
[1763621154666,0.002,3018.7,3018.6,3.88189401]
[1763621154869,0.002,3018.7,3018.6,3.42679401]
[1763621157694,0.002,3018.7,3018.6,3.88189401]
[1763621158776,0.002,3018.7,3018.6,4.34619401]
[1763621159569,0.002,3018.7,3018.6,3.88189401]
[1763621160986,0.002,3018.7,3018.1,0.001]
[1763621160987,6.62558802,3018.6,3018.1,0.001]
[1763621161166,0.4862,3018.2,3018.1,0.001]
[1763621161363,0.79184454,3018.2,3018.1,0.001]
[1763621161604,1.28854454,3018.2,3018.1,0.001]
[1763621162697,1.99257755,3018.2,3018.1,0.001]
[1763621165396,1.28854454,3018.2,3018.1,0.001]
[1763621166987,0.79184454,3018.2,3018.1,0.001]
[1763621167491,0.9829,3018.2,3018.1,0.001]
[1763621168103,0.4862,3018.2,3018.1,0.001]
[1763621168976,0.79161402,3018.2,3018.1,0.001]
[1763621170219,0.4731,3018.5,3018.1,0.001]
[1763621170371,0.4731,3018.4,3018.1,0.001]
[1763621170889,0.4907,3018.2,3018.1,0.001]
[1763621171399,0.9638,3018.2,3018.1,0.001]
[1763621171606,0.002,3018.7,3018.1,0.4654]
[1763621171767,1.01141345,3018.7,3018.1,0.6481]
[1763621171964,0.30555221,3018.6,3018.1,1.43469949]
[1763621172168,0.002,3018.7,3018.1,1.43469949]
[1763621172391,0.002,3018.7,3018.5,0.4644]
[1763621172604,0.002,3018.7,3018.6,0.113]
[1763621172815,0.002,3018.7,3018.6,0.5774]
[1763621172973,0.002,3018.7,3018.6,1.0554]
[1763621173173,0.002,3018.7,3018.6,4.36819401]
[1763621173486,0.002,3018.7,3018.6,5.13630372]
[1763621174214,0.002,3018.7,3018.6,4.54530372]
[1763621174418,0.002,3018.7,3018.6,1.34550971]
[1763621174727,0.002,3018.7,3018.1,0.001]
[1763621174728,0.8121,3018.7,3018.1,0.001]
[1763621174927,0.3356,3018.2,3018.1,0.001]
[1763621175236,0.30561561,3018.6,3018.1,0.1837]
[1763621175403,0.4907,3018.2,3018.1,0.001]
[1763621175783,0.9638,3018.2,3018.1,0.001]
[1763621176099,1.26926124,3018.2,3018.1,0.001]
[1763621176915,0.79616124,3018.2,3018.1,0.001]
[1763621177487,1.26926124,3018.2,3018.1,0.001]
[1763621178196,4.58249429,3018.2,3018.1,0.001]
[1763621178397,5.46274474,3018.2,3018.1,0.001]
[1763621179182,7.0731239,3018.2,3018.1,0.001]
[1763621179388,1.78559664,3018.1,3017.0,0.001]
[1763621179686,0.4818,3017.1,3017.0,0.001]
[1763621180205,0.9549,3017.1,3017.0,0.001]
[1763621180393,0.87893317,3017.7,3017.0,0.4654]
[1763621180394,0.70338652,3017.4,3017.0,0.4654]
[1763621180606,0.70338652,3017.6,3017.0,0.4654]
[1763621180780,0.3050325,3017.5,3017.0,0.001]
[1763621180984,0.7781325,3017.5,3017.0,0.001]
[1763621181185,0.90699264,3017.3,3017.1,0.113]
[1763621181485,1.38009264,3017.4,3017.1,0.113]
[1763621182117,4.66563717,3017.9,3017.1,3.77030638]
[1763621182284,2.38738679,3017.8,3017.1,0.113]
[1763621182484,2.38738679,3017.8,3017.0,3.31550335]
[1763621182485,0.30487171,3017.7,3017.2,0.113]
[1763621182705,0.77797171,3017.7,3017.2,0.113]
[1763621183099,0.4731,3017.6,3017.2,0.113]
[1763621183300,7.10099994,3017.6,3017.0,0.001]
[1763621183520,0.0422,3017.1,3017.0,0.001]
[1763621183705,0.0422,3017.1,3017.0,0.114]
[1763621184023,0.4731,3017.5,3017.0,0.114]
[1763621184213,1.38009264,3017.5,3017.0,0.114]
[1763621184598,0.4731,3017.4,3017.0,0.114]
[1763621184904,0.4731,3017.4,3017.0,3.4285399]
[1763621185104,0.90699264,3017.5,3017.0,3.4285399]
[1763621185299,1.38009264,3017.5,3017.0,3.4285399]
[1763621186328,4.22082284,3017.7,3017.0,3.4285399]
[1763621186511,4.22082284,3017.7,3017.1,0.07314441]
[1763621186690,4.22079722,3017.7,3017.1,0.04]
[1763621186890,0.90699264,3017.7,3017.0,7.41741036]
[1763621187090,0.4731,3017.7,3017.1,0.04]
[1763621187300,3.78657761,3018.0,3017.2,3.31433116]
[1763621187721,0.77502114,3017.9,3017.2,3.31433116]
[1763621188437,0.77502114,3017.9,3017.2,6.62866232]
[1763621188632,0.90699264,3018.0,3017.3,0.4883]
[1763621188836,0.90699264,3018.0,3017.4,0.113]
[1763621189296,0.90699264,3018.1,3017.5,3.31400165]
[1763621189492,0.90699264,3018.2,3017.5,6.6280033]
[1763621189694,0.30536428,3018.1,3017.6,0.4883]
[1763621189906,1.00896875,3018.3,3017.6,0.4883]
[1763621190143,0.30536428,3018.2,3017.6,0.4883]
[1763621190545,0.30540435,3018.2,3017.6,0.4883]
[1763621190727,0.30540435,3018.2,3017.6,1.28352995]
[1763621191333,0.30540435,3018.2,3017.7,6.62756402]
[1763621191646,0.002,3018.6,3018.1,0.4808]
[1763621191851,0.002,3018.6,3018.2,0.113]
[1763621192034,0.30749523,3018.6,3018.2,0.113]
[1763621192359,0.002,3018.6,3018.2,0.113]
[1763621193051,0.002,3018.6,3018.5,0.4808]
[1763621193269,0.002,3018.6,3018.5,3.79370376]
[1763621193592,0.002,3018.6,3018.5,4.28200376]
[1763621194709,0.4751,3018.6,3018.5,0.113]
[1763621195129,0.002,3018.6,3018.5,0.113]
[1763621195616,0.002,3018.6,3018.5,3.42590376]
[1763621196935,0.4751,3018.6,3018.3,3.31312246]
[1763621197274,0.4751,3018.6,3018.1,3.31334011]
[1763621197275,0.96999264,3018.4,3018.0,0.113]
[1763621197433,0.469,3018.2,3018.0,0.113]
[1763621197632,0.90899264,3019.0,3018.1,1.2455]
[1763621197992,0.002,3019.0,3018.3,3.494]
[1763621198151,0.002,3019.0,3018.2,8.10520742]
[1763621198152,0.1816,3018.9,3018.2,1.46122436]
[1763621198478,0.1816,3018.9,3018.3,0.113]
[1763621199364,0.1816,3018.9,3018.4,6.62602702]
[1763621199563,0.002,3019.0,3018.4,7.29992972]
[1763621201255,0.1816,3018.9,3018.5,0.113]
[1763621201789,0.6745,3018.9,3018.5,3.42590317]
[1763621202585,0.4818,3018.6,3018.1,3.48882384]
[1763621202788,0.4818,3018.2,3017.2,6.62866232]
[1763621202990,0.4818,3018.2,3017.3,0.77986623]
[1763621203490,0.9747,3018.2,3017.4,3.31411148]
[1763621203785,0.9747,3018.2,3017.4,3.42711148]
[1763621203950,0.9747,3018.2,3017.4,6.74122296]
[1763621204156,1.88169264,3018.2,3017.4,6.74122296]
[1763621204383,4.28794587,3018.2,3017.4,7.48203188]
[1763621204584,4.28794587,3018.2,3017.4,4.1679204]
[1763621204793,4.28794587,3018.2,3017.4,3.42711148]
[1763621205455,0.90699264,3018.0,3017.2,3.31433116]
[1763621205686,0.90699264,3018.0,3017.3,0.113]
[1763621205890,0.90699264,3018.0,3017.1,3.35439521]
[1763621205891,0.4929,3017.9,3017.1,0.04]
[1763621206095,0.4929,3017.9,3017.2,0.113]
[1763621206096,1.60034185,3017.9,3017.2,0.113]
[1763621206292,0.30477331,3017.8,3017.0,0.001]
[1763621206465,0.4818,3017.2,3017.1,0.113]
[1763621206666,0.4818,3017.1,3017.0,0.001]
[1763621207079,0.9747,3017.1,3017.0,0.001]
[1763621207392,0.4818,3017.1,3017.0,0.001]
[1763621207957,0.9747,3017.1,3017.0,0.001]
[1763621208278,4.28914101,3017.1,3017.0,0.001]
[1763621208682,1.31249664,3017.5,3017.0,0.001]
[1763621208880,0.4929,3017.4,3017.0,0.001]
[1763621209837,0.405504,3017.8,3017.0,0.67535315]
[1763621209994,0.4929,3017.7,3017.0,0.67535315]
[1763621211018,0.4929,3018.3,3017.0,0.67535315]
[1763621211220,1.96754286,3018.3,3017.0,0.67535315]
[1763621211520,0.30453246,3018.2,3017.1,6.62888202]
[1763621211722,0.898404,3018.2,3017.2,0.113]
[1763621211923,0.30453246,3018.1,3017.2,0.113]
[1763621213118,0.4929,3018.2,3017.2,0.113]
[1763621213494,0.79748628,3018.2,3017.3,6.62844264]
[1763621213830,0.898404,3018.5,3017.4,1.00557063]
[1763621214121,0.30460977,3018.4,3017.4,1.00557063]
[1763621214526,0.4929,3018.7,3017.4,1.00557063]
[1763621214683,0.4929,3018.6,3017.4,1.00557063]
[1763621214890,0.405504,3018.5,3017.5,0.87640133]
[1763621215126,0.71016487,3018.5,3017.5,0.87640133]
[1763621215299,0.4929,3018.4,3017.6,0.113]
[1763621215501,0.79756087,3018.4,3017.5,0.76340133]
[1763621215797,0.90699264,3018.3,3017.7,0.113]
[1763621216120,1.39989264,3018.3,3017.7,0.113]
[1763621216334,0.4929,3018.2,3017.7,0.113]
[1763621217707,0.90699264,3018.6,3017.8,3.31367221]
[1763621217903,0.79748431,3018.5,3017.8,3.31367221]
[1763621218512,0.79748431,3018.5,3017.8,6.62734442]
[1763621219409,0.30458431,3018.5,3017.8,6.62734442]
[1763621219637,0.002,3018.7,3017.8,10.69009469]
[1763621222142,0.002,3018.7,3017.8,14.0037669]
[1763621223422,0.002,3018.7,3017.8,10.69009469]
[1763621223845,0.002,3018.7,3017.8,14.0037669]
[1763621224045,0.002,3018.7,3018.1,4.12144038]
[1763621224279,0.002,3018.7,3018.2,0.113]
[1763621224567,0.002,3018.7,3018.1,4.12144038]
[1763621224727,0.002,3018.7,3018.3,0.113]
[1763621225458,0.002,3018.7,3018.5,4.12144038]
[1763621225759,0.002,3018.7,3018.6,0.41214404]
[1763621225959,0.002,3018.7,3018.6,3.72493805]
[1763621228430,0.002,3018.7,3018.6,3.75806599]
[1763621228631,0.002,3018.7,3018.6,3.72493805]
[1763621228933,0.002,3018.7,3018.6,4.66505863]
[1763621230263,0.002,3019.3,3018.7,1.31249664]
[1763621230575,0.002,3019.3,3019.2,4.12144038]
[1763621230866,0.002,3019.3,3019.2,4.15117735]
[1763621232369,0.002,3019.3,3019.2,7.46331301]
[1763621234278,0.002,3019.3,3019.0,4.94516999]
[1763621234556,0.002,3019.3,3019.2,0.113]
[1763621234999,0.002,3019.3,3019.2,4.15117735]
[1763621235151,0.002,3019.3,3019.2,0.113]
[1763621235334,0.002,3019.3,3019.1,4.86393929]
[1763621235529,0.002,3019.3,3019.2,0.14612135]
[1763621235736,0.002,3019.3,3019.2,0.70470533]
[1763621236469,0.9605,3019.3,3018.7,0.8786499]
[1763621236640,0.9605,3019.3,3018.8,0.113]
[1763621236641,0.4791,3019.2,3018.8,0.113]
[1763621237227,0.4791,3019.2,3018.9,0.113]
[1763621237432,0.9585,3019.2,3018.9,0.113]